fUSD/lending_fUSD_20240213
["ID","MTS","AMOUNT","RATE_DAILY","PERIOD"]
[313932813,1707837485931,-210.0,0.000437,30]
[313932814,1707837485955,-162.19605,0.00043725,30]
[313932815,1707837485979,-9410.67427244,0.00043735,120]
[313932816,1707837489871,-221.5444787,0.00035,30]
[313932817,1707837489984,-84841.2610767,0.0004,30]
[313932818,1707837490165,-150.0,0.00043371,30]
[313932819,1707837490191,-46180.73328102,0.00043735,120]
[313932820,1707837490215,-24000.0,0.0004374,120]
[313932821,1707837490240,-8000.0,0.00043747,120]
[313932822,1707837490266,-2651.0,0.0004378,37]
[313932823,1707837490292,-2200.55624,0.00043798,30]
[313932824,1707837490318,-1426.67828551,0.000438,120]
[313932825,1707837490344,-1000.0,0.000438,49]
[313932826,1707837490368,-300.0,0.000438,56]
[313932827,1707837490401,-275416.86424497,0.000438,30]
[313932828,1707837490425,-1100000.0,0.000438,30]
[313932829,1707837490450,-150.0,0.000438,33]
[313932830,1707837490474,-24000.0,0.000438,120]
[313932831,1707837490497,-5228.0,0.000438,30]
[313932832,1707837490522,-1034.99272996,0.000438,30]
[313932833,1707837490546,-490.75219886,0.00043835,60]
[313932834,1707837490569,-1000.0,0.00043835,30]
[313932835,1707837490593,-1000.0,0.00043835,30]
[313932836,1707837490617,-558.13875194,0.00043835,30]
[313932837,1707837490642,-500.0,0.00043835,30]
[313932838,1707837490665,-3000.0,0.00043835,120]
[313932839,1707837491784,211.14099376,0.0004,30]
[313932840,1707837495056,6676.80262632,0.00042,30]
[313932841,1707837495517,1441.20959872,0.0004,30]
[313932842,1707837495568,200.0,0.000375,30]
[313932843,1707837496489,200.0,0.000377,30]
[313932844,1707837497379,200.0,0.000379,30]
[313932845,1707837498895,200.0,0.000381,30]
[313932846,1707837500743,200.0,0.000383,30]
[313932847,1707837501676,379.23029251,0.000385,30]
[313932856,1707837605457,-350.0,0.00025,3]
[313932857,1707837635142,-450.0,0.00024999,2]
[313932889,1707838231460,-398.3015328,0.00023353,2]
[313932891,1707838231473,-1455.0,0.00023353,2]
[313932893,1707838231486,-450.0,0.00023353,2]
[313932895,1707838231520,-2292.47356065,0.00023353,2]
[313932896,1707838231530,-1227.03597145,0.00023354,2]
[313932897,1707838231539,-3669.90510222,0.00023355,2]
[313932898,1707838231549,-1349.02246101,0.00023461,2]
[313932899,1707838231558,-1349.02246101,0.00023672,2]
[313932900,1707838231567,-1349.02246101,0.00023996,2]
[313932901,1707838231578,-1349.02246101,0.0002417,2]
[313932902,1707838231588,-488.24,0.00024541,2]
[313932903,1707838231597,-1349.02246101,0.00024656,2]
[313932904,1707838231607,-1349.02246101,0.00024682,2]
[313932905,1707838231616,-345.27,0.00025,2]
[313932906,1707838231625,-1592.37015014,0.00025066,2]
[313932907,1707838231634,-157.13553776,0.00025067,2]
[313932908,1707838231644,-499.99,0.00025067,2]
[313932909,1707838231654,-626.71,0.00025067,2]
[313932910,1707838231664,-1349.02246101,0.00025192,2]
[313932911,1707838231674,-157.1355377,0.00025415,2]
[313932912,1707838231684,-1349.02246101,0.00025451,2]
[313932913,1707838231694,-1349.02246101,0.00025624,2]
[313932914,1707838231704,-157.1355377,0.00025763,2]
[313932915,1707838231714,-1349.02246101,0.00025765,2]
[313932916,1707838231723,-478.22,0.00025969,2]
[313932917,1707838231733,-154.41,0.00025975,2]
[313932918,1707838231743,-170.82,0.00025994,2]
[313932919,1707838231752,-250.0,0.00026054,2]
[313932920,1707838231762,-2000.0,0.0002607,2]
[313932921,1707838231772,-157.1355377,0.00026111,2]
[313932922,1707838231781,-8378.72,0.00026257,2]
[313932923,1707838231791,-1349.02246101,0.00026277,2]
[313932924,1707838231801,-156.83,0.00026284,2]
[313932925,1707838231811,-1349.02246101,0.00026415,2]
[313932926,1707838231821,-157.1355377,0.00026459,2]
[313932927,1707838231830,-250.0,0.00026496,2]
[313932928,1707838231839,-1562.92120643,0.00026627,2]
[313932929,1707838231851,-78.38879357,0.00026627,2]
[313932930,1707838231861,-488.24,0.00026805,2]
[313932931,1707838231870,-157.1355377,0.00026808,2]
[313932932,1707838231880,-1349.02246101,0.00026811,2]
[313932933,1707838231889,-174.67,0.00026817,2]
[313932934,1707838231900,-212.0,0.00026864,2]
[313932935,1707838231910,-3411.44950255,0.00026876,2]
[313932936,1707838231920,-603.79,0.00026879,2]
[313932937,1707838231930,-436.22809668,0.00026885,2]
[313932938,1707838231940,-1349.02246101,0.00026904,2]
[313932939,1707838231949,-400.0,0.00027,3]
[313932940,1707838231960,-1349.02246101,0.0002714,2]
[313932941,1707838231971,-157.1355377,0.00027156,2]
[313932942,1707838231980,-714.84,0.00027179,2]
[313932943,1707838231990,-1401.11240088,0.000273,6]
[313932944,1707838232000,-354.4,0.000273,2]
[313932945,1707838232009,-1000.0,0.00027301,2]
[313932946,1707838232018,-722.12,0.00027357,2]
[313932947,1707838232027,-1533.16906842,0.00027357,3]
[313932948,1707838232037,-227.64114619,0.00027357,3]
[313932949,1707838232046,-277.88821191,0.00027357,3]
[313932950,1707838232055,-1213.61978856,0.00027357,3]
[313932951,1707838232065,-1003.93839972,0.000274,2]
[313932952,1707838232075,-1349.02246101,0.00027439,2]
[313932953,1707838232086,-157.1355377,0.00027504,2]
[313932955,1707838232095,-478.22,0.00027613,2]
[313932957,1707838232104,-1112.0,0.00027637,2]
[313932959,1707838232114,-1349.02246101,0.00027787,2]
[313932961,1707838232124,-157.1355377,0.00027852,2]
[313932963,1707838232133,-496.38960324,0.00027916,2]
[313932965,1707838232145,-376.99160456,0.00028,2]
[313932967,1707838232155,-696.8137635,0.00028011,2]
[313932969,1707838232164,-347.0,0.00028017,2]
[313932970,1707838232173,-1518.07517983,0.00028058,2]
[313932972,1707838232184,-1349.02246101,0.00028065,2]
[313932973,1707838232194,-181.49,0.0002809,10]
[313932974,1707838232204,-151.24,0.0002809,10]
[313932975,1707838232213,-156.10743605,0.00028099,2]
[313932976,1707838232223,-866.39993352,0.00028099,2]
[313932977,1707838232232,-47448.34972568,0.000281,2]
[313932978,1707838232245,-2425.0,0.000281,2]
[313932979,1707838232257,-269.59121782,0.000281,2]
[313932980,1707838232269,-4160.96005272,0.000281,2]
[313932981,1707838232280,-2621.4,0.000281,2]
[313932982,1707838232305,-3106.51788,0.000281,2]
[313932983,1707838232317,-9378.16263619,0.000281,2]
[313932984,1707838232331,-607.33207732,0.000281,2]
[313932985,1707838232343,-780.78081971,0.000281,2]
[313932986,1707838232356,-21762.39289056,0.000281,2]
[313932987,1707838232368,-9399.6,0.000281,2]
[313932988,1707838232378,-376.99160454,0.000281,2]
[313932989,1707838232387,-1359.10256199,0.000281,2]
[313932990,1707838232405,-1156.0968715,0.000281,2]
[313932991,1707838232417,-731.185452,0.000281,2]
[313932992,1707838232431,-6109.29293369,0.000281,2]
[313932993,1707838232443,-996.2300471,0.000281,2]
[313932994,1707838232455,-881.39506339,0.000281,2]
[313932995,1707838232468,-956.83636422,0.000281,2]
[313932996,1707838232479,-7575.32741168,0.000281,2]
[313932997,1707838232525,-277.81184188,0.000281,2]
[313933015,1707838237512,-204.0,0.00026864,2]
[313933016,1707838237523,-818.57275621,0.000281,2]
[313933017,1707838237533,-526.71192705,0.00028198,2]
[313933018,1707838237554,-946.80415467,0.00028198,2]
[313933019,1707838237564,-301.10506276,0.00028198,2]
[313933020,1707838237574,-749.92288884,0.00028198,2]
[313933021,1707838237583,-908.89017,0.00028199,2]
[313933022,1707838237593,-10095.10718371,0.000282,2]
[313933023,1707838237603,-157.1355377,0.000282,2]
[313933024,1707838237613,-161.11860433,0.000282,2]
[313933025,1707838237623,-2828.77995237,0.000282,4]
[313933026,1707838237632,-931.69010561,0.000282,2]
[313933027,1707838237642,-496.36620314,0.000282,2]
[313933028,1707838237653,-683.63828482,0.000282,2]
[313933029,1707838237663,-376.99160454,0.000282,2]
[313933030,1707838237672,-212.46238579,0.000282,14]
[313933031,1707838237682,-539.95398607,0.000282,2]
[313933032,1707838237691,-5362.64679428,0.000282,2]
[313933033,1707838237701,-381.21877952,0.000282,2]
[313933034,1707838237710,-2228.75748246,0.000282,2]
[313933035,1707838237720,-671.25035838,0.000282,2]
[313933036,1707838237730,-161.32387663,0.00028297,2]
[313933037,1707838237740,-9354.99208459,0.00028299,2]
[313933038,1707838237770,-855.82483536,0.00028299,2]
[313933039,1707838237782,-973.19222,0.00028299,2]
[313933040,1707838237795,-852.80488678,0.00028299,2]
[313933041,1707838237811,-2227.95963658,0.00028299,2]
[313933042,1707838237838,-406.58980075,0.00028299,2]
[313933043,1707838237851,-1096.07949572,0.00028299,2]
[313933044,1707838239565,-1087.88873388,0.00028299,2]
[313933045,1707838239578,-2430.55,0.00028299,2]
[313933046,1707838239633,-4880.85938295,0.00028299,2]
[313933050,1707838240410,-3030.86220891,0.00028299,2]
[313933051,1707838240427,-753.14572561,0.00028299,2]
[313933052,1707838240440,-919.78593409,0.00028299,2]
[313933053,1707838240472,-899.58093036,0.00028299,2]
[313933054,1707838240559,-726.40413545,0.00028299,2]
[313933055,1707838241251,-12272.9981972,0.00028299,2]
[313933056,1707838241262,-204.56517427,0.00028299,2]
[313933057,1707838241272,-262.83416571,0.00028299,2]
[313933058,1707838241283,-805.28650404,0.00028299,2]
[313933059,1707838241292,-520.61377453,0.00028299,2]
[313933060,1707838241302,-150.0,0.00028299,2]
[313933061,1707838241313,-230848.27841885,0.000283,2]
[313933062,1707838241327,-17146.149,0.000283,2]
[313933063,1707838241355,-713.41617074,0.00028099,2]
[313933064,1707838241364,-2229.30316368,0.000283,2]
[313933065,1707838241417,-1437.21408635,0.000283,2]
[313933105,1707838242546,-156.50903036,0.00028298,2]
[313933107,1707838242557,-311.43526537,0.00028298,2]
[313933108,1707838242566,-48132.05570428,0.000283,2]
[313933109,1707838242583,-1075.45319204,0.000283,2]
[313933110,1707838242596,-1289.27241993,0.000283,2]
[313933111,1707838242608,-612.1238,0.000283,2]
[313933112,1707838242620,-1479.4165613,0.000283,2]
[313933113,1707838242633,-885.97,0.000283,2]
[313933114,1707838242678,-15738.3,0.000283,2]
[313933115,1707838242694,-3898.14023645,0.000283,2]
[313933116,1707838242707,-552.95768703,0.000283,2]
[313933117,1707838242724,-2981.7558,0.000283,2]
[313933118,1707838242736,-3279.81113899,0.000283,2]
[313933119,1707838242748,-7472.10593825,0.000283,2]
[313933120,1707838242777,-2159.19825213,0.000283,2]
[313933173,1707838248745,-4050160.69549844,0.000283,2]
[313933174,1707838248755,-727.98,0.000283,2]
[313933175,1707838248765,-184.6,0.00028317,2]
[313933176,1707838248775,-1518.07517984,0.00028552,2]
[313933177,1707838248784,-191.73170434,0.00028564,2]
[313933178,1707838248794,-473.54978766,0.00028564,2]
[313933179,1707838248803,-201.99882704,0.00028564,2]
[313933180,1707838248813,-155.47694052,0.00028565,2]
[313933181,1707838248823,-290.3213485,0.00028565,2]
[313933182,1707838248833,-246.23794881,0.00028565,2]
[313933183,1707838248843,-234.87008297,0.00028565,2]
[313933184,1707838248853,-155.0,0.00028565,2]
[313933185,1707838248862,-995.89,0.00028566,2]
[313933186,1707838248872,-154.11,0.00028619,2]
[313933187,1707838248881,-1349.02246101,0.00028717,2]
[313933188,1707838248891,-483.42914929,0.00028764,2]
[313933189,1707838248901,-215.87930929,0.00028765,2]
[313933190,1707838248915,-157.18120035,0.00028765,2]
[313933191,1707838248924,-286.17157154,0.00028765,2]
[313933192,1707838248934,-513.3675182,0.00028765,2]
[313933193,1707838248944,-2232.85795144,0.00028765,2]
[313933194,1707838248953,-227.32795143,0.00028765,2]
[313933195,1707838248962,-911.28104243,0.00028766,2]
[313933196,1707838248971,-293.64749083,0.00028766,2]
[313933197,1707838248981,-2690.30960849,0.00028766,2]
[313933198,1707838248990,-150.0,0.00028766,2]
[313933199,1707838248999,-1174.71341863,0.00028767,3]
[313933200,1707838249009,-226.77234435,0.00028767,2]
[313933201,1707838249019,-448.68680483,0.00028767,2]
[313933202,1707838249028,-506.33687183,0.00028767,2]
[313933203,1707838249037,-512.96274922,0.00028767,2]
[313933204,1707838249047,-500.0,0.00028767,2]
[313933205,1707838249057,-501.65763673,0.00028767,2]
[313933206,1707838249066,-1000.9423887,0.00028767,2]
[313933207,1707838249075,-528.24065208,0.00028767,2]
[313933208,1707838249085,-531.71640495,0.00028767,2]
[313933209,1707838249094,-507.97092179,0.00028767,2]
[313933210,1707838249103,-517.03320835,0.00028767,2]
[313933211,1707838249113,-558.10435834,0.00028767,2]
[313933212,1707838249122,-432.92666658,0.00028767,2]
[313933213,1707838249131,-574.08497498,0.00028767,2]
[313933214,1707838249141,-316.23099679,0.00028767,2]
[313933215,1707838249151,-614.80715465,0.00028767,2]
[313933216,1707838249162,-444.8112171,0.00028767,2]
[313933217,1707838249171,-500.0,0.00028767,2]
[313933218,1707838249181,-500.0,0.00028767,2]
[313933219,1707838249191,-324.88122371,0.00028767,2]
[313933220,1707838249200,-500.0,0.00028767,2]
[313933221,1707838249209,-634.85137791,0.00028767,2]
[313933222,1707838249219,-500.0,0.00028767,2]
[313933223,1707838249228,-500.0,0.00028767,2]
[313933224,1707838249237,-205.10817272,0.00028767,2]
[313933225,1707838249246,-506.81650344,0.00028767,2]
[313933226,1707838249256,-500.0,0.00028767,2]
[313933227,1707838249266,-500.0,0.00028767,2]
[313933228,1707838249275,-528.33338442,0.00028767,2]
[313933229,1707838249285,-500.0,0.00028767,2]
[313933230,1707838249294,-500.0,0.00028767,2]
[313933231,1707838249303,-518.67585947,0.00028767,2]
[313933232,1707838249312,-500.0,0.00028767,2]
[313933233,1707838249322,-546.56108207,0.00028767,2]
[313933234,1707838249332,-500.0,0.00028767,2]
[313933235,1707838249482,-500.0,0.00028767,2]
[313933236,1707838249492,-513.9353126,0.00028767,2]
[313933237,1707838249502,-546.99060507,0.00028767,2]
[313933238,1707838249511,-500.0,0.00028767,2]
[313933239,1707838249522,-576.39,0.00028767,2]
[313933240,1707838249531,-500.0,0.00028767,2]
[313933241,1707838249540,-525.72661641,0.00028767,2]
[313933242,1707838249550,-532.56,0.00028767,2]
[313933243,1707838249559,-500.0,0.00028767,2]
[313933244,1707838249569,-500.0,0.00028767,2]
[313933245,1707838249578,-514.02981637,0.00028767,2]
[313933246,1707838249588,-500.0,0.00028767,2]
[313933247,1707838249598,-571.49,0.00028767,2]
[313933248,1707838249607,-509.97240823,0.00028767,2]
[313933249,1707838249617,-500.0,0.00028767,2]
[313933250,1707838249627,-500.0,0.00028767,2]
[313933251,1707838249636,-500.0,0.00028767,2]
[313933252,1707838249646,-500.0,0.00028767,2]
[313933253,1707838249655,-500.0,0.00028767,2]
[313933254,1707838249667,-500.0,0.00028767,2]
[313933255,1707838249677,-500.0,0.00028767,2]
[313933256,1707838249687,-500.0,0.00028767,2]
[313933257,1707838249697,-500.0,0.00028767,2]
[313933258,1707838249706,-579.9038753,0.00028767,2]
[313933259,1707838249716,-500.0,0.00028767,2]
[313933260,1707838249725,-635.62,0.00028767,2]
[313933261,1707838249736,-500.0,0.00028767,2]
[313933262,1707838249746,-500.0,0.00028767,2]
[313933263,1707838249756,-536.18841914,0.00028767,2]
[313933264,1707838249766,-512.67067535,0.00028767,2]
[313933265,1707838249775,-226.64500967,0.00028767,2]
[313933266,1707838249785,-551.81181905,0.00028767,2]
[313933267,1707838249795,-500.0,0.00028767,2]
[313933268,1707838249804,-524.4872185,0.00028767,2]
[313933269,1707838249813,-500.0,0.00028767,2]
[313933270,1707838249823,-545.06098541,0.00028767,2]
[313933271,1707838249832,-499.22932452,0.00028767,2]
[313933272,1707838249841,-644.94,0.00028767,2]
[313933273,1707838249850,-500.0,0.00028767,2]
[313933274,1707838249859,-500.0,0.00028767,2]
[313933275,1707838249868,-500.0,0.00028767,2]
[313933276,1707838249878,-500.0,0.00028767,2]
[313933277,1707838249887,-517.42897085,0.00028767,2]
[313933278,1707838249896,-521.91055187,0.00028767,2]
[313933279,1707838249905,-504.9352676,0.00028767,2]
[313933280,1707838249917,-500.0,0.00028767,2]
[313933281,1707838249926,-502.03975329,0.00028767,2]
[313933282,1707838249935,-500.0,0.00028767,2]
[313933283,1707838249944,-500.0,0.00028767,2]
[313933284,1707838249953,-500.0,0.00028767,2]
[313933285,1707838249963,-500.0,0.00028767,2]
[313933286,1707838249972,-500.0,0.00028767,2]
[313933287,1707838249981,-541.74316967,0.00028767,2]
[313933288,1707838249990,-521.91286129,0.00028767,2]
[313933289,1707838250000,-516.90095799,0.00028767,2]
[313933290,1707838250009,-500.0,0.00028767,2]
[313933291,1707838250019,-500.0,0.00028767,2]
[313933292,1707838250028,-517.58637176,0.00028767,2]
[313933293,1707838250038,-524.71310143,0.00028767,2]
[313933294,1707838250047,-500.0,0.00028767,2]
[313933295,1707838250056,-500.0,0.00028767,2]
[313933296,1707838250065,-523.7070368,0.00028767,2]
[313933297,1707838250074,-560.78,0.00028767,2]
[313933298,1707838250084,-500.0,0.00028767,2]
[313933299,1707838250093,-645.95519538,0.00028767,2]
[313933300,1707838250103,-533.94619546,0.00028767,2]
[313933301,1707838250113,-500.0,0.00028767,2]
[313933302,1707838250123,-500.0,0.00028767,2]
[313933303,1707838250133,-469.1370596,0.00028767,2]
[313933304,1707838250143,-508.2226955,0.00028767,2]
[313933305,1707838250154,-500.0,0.00028767,2]
[313933306,1707838250167,-500.0,0.00028767,2]
[313933307,1707838250177,-319.999378,0.00028767,2]
[313933308,1707838250187,-512.53787083,0.00028767,2]
[313933309,1707838250198,-500.0,0.00028767,2]
[313933310,1707838250208,-500.0,0.00028767,2]
[313933311,1707838250218,-208.06793408,0.00028767,2]
[313933312,1707838250228,-500.0,0.00028767,2]
[313933313,1707838250238,-509.38258704,0.00028767,2]
[313933314,1707838250248,-500.0,0.00028767,2]
[313933315,1707838250260,-589.65,0.00028767,2]
[313933316,1707838250271,-500.0,0.00028767,2]
[313933317,1707838250281,-500.0,0.00028767,2]
[313933318,1707838250292,-508.07561576,0.00028767,2]
[313933319,1707838250302,-587.76554613,0.00028767,2]
[313933320,1707838250313,-500.0,0.00028767,2]
[313933321,1707838250325,-513.66763768,0.00028767,2]
[313933322,1707838250340,-500.0,0.00028767,2]
[313933323,1707838250351,-500.75280323,0.00028767,2]
[313933324,1707838250362,-500.0,0.00028767,2]
[313933325,1707838250372,-523.78727521,0.00028767,2]
[313933326,1707838250383,-509.51125378,0.00028767,2]
[313933327,1707838250392,-328.39686006,0.00028767,2]
[313933328,1707838250402,-506.48498232,0.00028767,2]
[313933329,1707838250418,-500.0,0.00028767,2]
[313933330,1707838250430,-500.0,0.00028767,2]
[313933331,1707838250441,-541.32095272,0.00028767,2]
[313933332,1707838250452,-512.37923915,0.00028767,2]
[313933333,1707838250462,-500.0,0.00028767,2]
[313933334,1707838250472,-521.52959923,0.00028767,2]
[313933335,1707838250482,-506.44811811,0.00028767,2]
[313933336,1707838250492,-379.5164083,0.00028767,2]
[313933337,1707838250502,-529.52202071,0.00028767,2]
[313933338,1707838250512,-500.0,0.00028767,2]
[313933339,1707838250522,-195.9195372,0.00028767,2]
[313933340,1707838250532,-500.0,0.00028767,2]
[313933341,1707838250542,-522.2367496,0.00028767,2]
[313933342,1707838250552,-254.88618473,0.00028767,2]
[313933343,1707838250562,-565.92,0.00028767,2]
[313933344,1707838250571,-500.0,0.00028767,2]
[313933345,1707838250581,-500.0,0.00028767,2]
[313933346,1707838250591,-524.02626584,0.00028767,2]
[313933347,1707838250600,-500.0,0.00028767,2]
[313933348,1707838250610,-619.97305862,0.00028767,2]
[313933349,1707838250620,-504.83012872,0.00028767,2]
[313933350,1707838250630,-506.43595239,0.00028767,2]
[313933351,1707838250640,-500.0,0.00028767,2]
[313933352,1707838250650,-500.0,0.00028767,2]
[313933353,1707838250662,-500.0,0.00028767,2]
[313933354,1707838250672,-500.0,0.00028767,2]
[313933355,1707838250682,-500.0,0.00028767,2]
[313933356,1707838250692,-500.0,0.00028767,2]
[313933357,1707838250702,-643.62738052,0.00028767,2]
[313933358,1707838250714,-536.07619213,0.00028767,2]
[313933359,1707838250725,-500.0,0.00028767,2]
[313933360,1707838250735,-500.0,0.00028767,2]
[313933361,1707838250744,-500.0,0.00028767,2]
[313933362,1707838250756,-547.79380137,0.00028767,2]
[313933363,1707838250766,-500.0,0.00028767,2]
[313933364,1707838250776,-500.0,0.00028767,2]
[313933365,1707838250785,-500.0,0.00028767,2]
[313933366,1707838250794,-500.0,0.00028767,2]
[313933367,1707838250803,-524.71847668,0.00028767,2]
[313933368,1707838250813,-421.08280545,0.00028767,2]
[313933369,1707838250822,-500.0,0.00028767,2]
[313933370,1707838250832,-500.0,0.00028767,2]
[313933371,1707838250841,-508.16102255,0.00028767,2]
[313933372,1707838250850,-521.57046813,0.00028767,2]
[313933373,1707838250860,-500.0,0.00028767,2]
[313933374,1707838250869,-200.14776441,0.00028767,2]
[313933375,1707838250879,-500.0,0.00028767,2]
[313933376,1707838250889,-500.0,0.00028767,2]
[313933377,1707838250898,-504.85349613,0.00028767,2]
[313933378,1707838250907,-500.0,0.00028767,2]
[313933379,1707838250919,-500.0,0.00028767,2]
[313933380,1707838250928,-500.0,0.00028767,2]
[313933381,1707838250937,-500.0,0.00028767,2]
[313933382,1707838250946,-520.25020808,0.00028767,2]
[313933383,1707838250956,-500.0,0.00028767,2]
[313933384,1707838250965,-510.03548345,0.00028767,2]
[313933385,1707838250975,-518.30358916,0.00028767,2]
[313933386,1707838250985,-500.0,0.00028767,2]
[313933387,1707838250995,-500.0,0.00028767,2]
[313933388,1707838251005,-500.0,0.00028767,2]
[313933389,1707838251015,-522.0025492,0.00028767,2]
[313933390,1707838251025,-500.0,0.00028767,2]
[313933391,1707838251034,-506.20615394,0.00028767,2]
[313933392,1707838251044,-500.0,0.00028767,2]
[313933393,1707838251053,-505.88469598,0.00028767,2]
[313933394,1707838251062,-500.72180672,0.00028767,2]
[313933395,1707838251072,-518.20096309,0.00028767,2]
[313933396,1707838251081,-500.0,0.00028767,2]
[313933397,1707838251091,-518.0809155,0.00028767,2]
[313933398,1707838251101,-150.0,0.00028767,2]
[313933399,1707838251110,-563.29261186,0.00028767,2]
[313933400,1707838251119,-500.0,0.00028767,2]
[313933401,1707838251128,-516.53068617,0.00028767,2]
[313933402,1707838251138,-515.6941983,0.00028767,2]
[313933403,1707838251147,-500.0,0.00028767,2]
[313933404,1707838251157,-206.87463486,0.00028767,2]
[313933405,1707838251169,-390.7206789,0.00028767,2]
[313933406,1707838251178,-528.79715566,0.00028767,2]
[313933407,1707838251187,-500.0,0.00028767,2]
[313933408,1707838251197,-203.73179369,0.00028767,2]
[313933409,1707838251206,-569.07192157,0.00028767,2]
[313933410,1707838251217,-548.5003245,0.00028767,2]
[313933411,1707838251226,-516.30644903,0.00028767,2]
[313933412,1707838251235,-500.0,0.00028767,2]
[313933413,1707838251244,-535.3391859,0.00028767,2]
[313933414,1707838251254,-500.0,0.00028767,2]
[313933415,1707838251263,-500.0,0.00028767,2]
[313933416,1707838251273,-533.74841162,0.00028767,2]
[313933417,1707838251282,-511.8030301,0.00028767,2]
[313933418,1707838251291,-516.49018346,0.00028767,2]
[313933419,1707838251301,-518.08148068,0.00028767,2]
[313933420,1707838251310,-500.0,0.00028767,2]
[313933421,1707838251319,-500.0,0.00028767,2]
[313933422,1707838251334,-500.0,0.00028767,2]
[313933423,1707838251343,-514.48452384,0.00028767,2]
[313933424,1707838251353,-500.13254319,0.00028767,2]
[313933425,1707838251362,-500.0,0.00028767,2]
[313933426,1707838251372,-500.0,0.00028767,2]
[313933427,1707838251381,-564.07897052,0.00028767,2]
[313933428,1707838251390,-508.44584838,0.00028767,2]
[313933429,1707838251400,-527.76816186,0.00028767,2]
[313933430,1707838251410,-540.10208838,0.00028767,2]
[313933431,1707838251420,-512.00203482,0.00028767,2]
[313933432,1707838251432,-521.01551996,0.00028767,2]
[313933433,1707838251441,-500.0,0.00028767,2]
[313933434,1707838251450,-545.89756171,0.00028767,2]
[313933435,1707838251459,-500.0,0.00028767,2]
[313933436,1707838251468,-500.0,0.00028767,2]
[313933437,1707838251478,-500.0,0.00028767,2]
[313933438,1707838251488,-500.0,0.00028767,2]
[313933439,1707838251498,-508.73854932,0.00028767,2]
[313933440,1707838251508,-500.0,0.00028767,2]
[313933441,1707838251518,-500.0,0.00028767,2]
[313933442,1707838251527,-500.0,0.00028767,2]
[313933443,1707838251538,-500.0,0.00028767,2]
[313933444,1707838251548,-500.0,0.00028767,2]
[313933445,1707838251557,-500.0,0.00028767,2]
[313933446,1707838251567,-500.0,0.00028767,2]
[313933447,1707838251576,-500.0,0.00028767,2]
[313933448,1707838251586,-500.0,0.00028767,2]
[313933449,1707838251596,-531.72763517,0.00028767,2]
[313933450,1707838251606,-500.0,0.00028767,2]
[313933451,1707838251616,-500.0,0.00028767,2]
[313933452,1707838251626,-500.0,0.00028767,2]
[313933453,1707838251737,-500.0,0.00028767,2]
[313933454,1707838251747,-500.0,0.00028767,2]
[313933455,1707838251757,-511.44831301,0.00028767,2]
[313933456,1707838251766,-500.0,0.00028767,2]
[313933457,1707838251775,-152.59,0.00028767,2]
[313933458,1707838251784,-500.0,0.00028767,2]
[313933459,1707838251793,-500.0,0.00028767,2]
[313933460,1707838251803,-507.88306037,0.00028767,2]
[313933461,1707838251812,-529.63722604,0.00028767,2]
[313933462,1707838251822,-512.68951646,0.00028767,2]
[313933463,1707838251831,-533.62531712,0.00028767,2]
[313933464,1707838251840,-500.0,0.00028767,2]
[313933465,1707838251849,-510.08301446,0.00028767,2]
[313933466,1707838251859,-500.0,0.00028767,2]
[313933467,1707838251868,-500.0,0.00028767,2]
[313933468,1707838251877,-500.0,0.00028767,2]
[313933469,1707838251886,-500.0,0.00028767,2]
[313933470,1707838251895,-504.29835926,0.00028767,2]
[313933471,1707838251904,-501.09432328,0.00028767,2]
[313933472,1707838251914,-500.0,0.00028767,2]
[313933473,1707838251923,-500.0,0.00028767,2]
[313933474,1707838251932,-500.0,0.00028767,2]
[313933475,1707838251941,-500.0,0.00028767,2]